[Event "*** Titled Tuesday Blitz"]
[Site "Chess.com"]
[Date "2020.02.04"]
[Round "4"]
[White "bluejay1897"]
[Black "bazar-wokzal"]
[Result "1-0"]
[WhiteElo "2396"]
[BlackElo "2538"]
[TimeControl "180+2"]
[EndTime "9:49:53 PST"]
[Termination "bluejay1897 won by resignation"]

1. Nf3 {[%clk 0:03:00.8]} 1... c5 {[%clk 0:03:00.3]} 2. g3 {[%clk 0:03:00.8]}
2... Nc6 {[%clk 0:03:00.8]} 3. Bg2 {[%clk 0:03:02.1]} 3... e5 {[%clk 0:03:02.2]}
4. O-O {[%clk 0:03:00.5]} 4... g5 {[%clk 0:03:03.3]} 5. e4 {[%clk 0:02:53.5]}
5... g4 {[%clk 0:03:04.2]} 6. Nh4 {[%clk 0:02:54.5]} 6... d6 {[%clk 0:03:03.9]}
7. Nc3 {[%clk 0:02:47.8]} 7... h5 {[%clk 0:02:56.5]} 8. Nd5 {[%clk 0:02:37.3]}
8... Nce7 {[%clk 0:02:53.2]} 9. Ne3 {[%clk 0:02:31.6]} 9... Bh6 {[%clk
0:02:47.6]} 10. c3 {[%clk 0:02:32.4]} 10... Bg5 {[%clk 0:02:44.9]} 11. Nhf5
{[%clk 0:02:28.4]} 11... Nxf5 {[%clk 0:02:43.1]} 12. exf5 {[%clk 0:02:28.4]}
12... Nf6 {[%clk 0:02:38.7]} 13. d4 {[%clk 0:02:28]} 13... cxd4 {[%clk
0:02:35.3]} 14. cxd4 {[%clk 0:02:28.1]} 14... exd4 {[%clk 0:02:28.6]} 15. Qxd4
{[%clk 0:02:28.2]} 15... Qb6 {[%clk 0:02:29.5]} 16. Qc3 {[%clk 0:02:21.4]} 16...
Qc5 {[%clk 0:02:18.1]} 17. Nc4 {[%clk 0:01:59.5]} 17... Bxc1 {[%clk 0:01:57.9]}
18. Raxc1 {[%clk 0:02:01.4]} 18... Rh6 {[%clk 0:01:49]} 19. Rfe1+ {[%clk
0:01:58]} 19... Kf8 {[%clk 0:01:48.1]} 20. b4 {[%clk 0:01:51.8]} 20... Qxf5
{[%clk 0:01:43.5]} 21. Nxd6 {[%clk 0:01:51.4]} 21... Qd7 {[%clk 0:01:40.3]} 22.
Nxc8 {[%clk 0:01:50.9]} 22... h4 {[%clk 0:01:28.7]} 23. Qc5+ {[%clk 0:01:39.8]}
23... Kg7 {[%clk 0:01:28.4]} 24. Nd6 {[%clk 0:01:40.8]} 24... Rh5 {[%clk
0:01:26.7]} 25. Qc7 {[%clk 0:01:24.9]} 25... Rd8 {[%clk 0:01:17.6]} 26. Qxd7
{[%clk 0:01:25.4]} 26... Rxd7 {[%clk 0:01:18.1]} 27. Nxb7 {[%clk 0:01:26.6]}
27... hxg3 {[%clk 0:01:18.1]} 28. hxg3 {[%clk 0:01:27.4]} 28... Rd2 {[%clk
0:01:17.9]} 29. a4 {[%clk 0:01:23.5]} 29... Rf5 {[%clk 0:01:15]} 30. Rf1 {[%clk
0:01:19.8]} 30... Rb2 {[%clk 0:01:12.1]} 31. b5 {[%clk 0:01:18.1]} 31... Nd7
{[%clk 0:01:06.4]} 32. Nd6 {[%clk 0:01:10.1]} 32... Rf6 {[%clk 0:01:03.1]} 33.
Ne8+ {[%clk 0:01:09.9]} 33... Kg6 {[%clk 0:01:03]} 34. Nxf6 {[%clk 0:01:10.9]}
34... Nxf6 {[%clk 0:01:04.1]} 35. Rc6 {[%clk 0:01:10.4]} 1-0

[Event "*** Titled Tuesday Blitz"]
[Site "Chess.com"]
[Date "2020.02.04"]
[Round "4"]
[White "GukeshDommaraju"]
[Black "VladDobrov"]
[Result "1-0"]
[WhiteElo "2657"]
[BlackElo "2912"]
[TimeControl "180+2"]
[EndTime "9:49:56 PST"]
[Termination "GukeshDommaraju won by resignation"]

1. Nf3 {[%clk 0:03:01.7]} 1... d5 {[%clk 0:03:00.1]} 2. g3 {[%clk 0:03:02.6]}
2... Nf6 {[%clk 0:02:58.7]} 3. Bg2 {[%clk 0:03:02.9]} 3... b5 {[%clk 0:02:53.4]}
4. O-O {[%clk 0:03:01.1]} 4... e6 {[%clk 0:02:54.4]} 5. d3 {[%clk 0:03:01.2]}
5... Be7 {[%clk 0:02:51.7]} 6. c4 {[%clk 0:03:00.7]} 6... b4 {[%clk 0:02:49.2]}
7. cxd5 {[%clk 0:02:57.8]} 7... exd5 {[%clk 0:02:50.1]} 8. d4 {[%clk 0:02:58.6]}
8... O-O {[%clk 0:02:50.2]} 9. Bg5 {[%clk 0:02:50.4]} 9... Ne4 {[%clk
0:02:45.5]} 10. Bxe7 {[%clk 0:02:50.6]} 10... Qxe7 {[%clk 0:02:47.4]} 11. Nbd2
{[%clk 0:02:39.9]} 11... a5 {[%clk 0:02:02.4]} 12. Ne5 {[%clk 0:02:18.8]} 12...
f6 {[%clk 0:01:56.7]} 13. Nd3 {[%clk 0:01:47.2]} 13... Na6 {[%clk 0:01:41.8]}
14. Rc1 {[%clk 0:01:32]} 14... Rd8 {[%clk 0:01:39.7]} 15. Nf4 {[%clk 0:01:26.2]}
15... Bb7 {[%clk 0:01:22.9]} 16. Nb3 {[%clk 0:01:25.6]} 16... c5 {[%clk
0:01:16.5]} 17. Nxa5 {[%clk 0:01:15.7]} 17... cxd4 {[%clk 0:00:20.6]} 18. Qxd4
{[%clk 0:01:05.2]} 18... g5 {[%clk 0:00:14]} 19. Nh5 {[%clk 0:00:54.4]} 19...
Kf7 {[%clk 0:00:14.7]} 20. Nxb7 {[%clk 0:00:52.6]} 1-0

[Event "*** Titled Tuesday Blitz"]
[Site "Chess.com"]
[Date "2020.02.04"]
[Round "4"]
[White "dabee"]
[Black "Kostina_Nadezhda"]
[Result "1-0"]
[WhiteElo "2578"]
[BlackElo "2171"]
[TimeControl "180+2"]
[EndTime "9:50:00 PST"]
[Termination "dabee won by resignation"]

1. d4 {[%clk 0:03:01.9]} 1... d5 {[%clk 0:03:00.3]} 2. Bf4 {[%clk 0:03:02.4]}
2... Nf6 {[%clk 0:03:00.2]} 3. e3 {[%clk 0:03:02.9]} 3... g6 {[%clk 0:02:57.4]}
4. Nf3 {[%clk 0:02:58.2]} 4... Bg7 {[%clk 0:02:58.4]} 5. Be2 {[%clk 0:02:58.9]}
5... O-O {[%clk 0:02:58.5]} 6. Ne5 {[%clk 0:02:58.6]} 6... Nbd7 {[%clk
0:02:54.5]} 7. Nc3 {[%clk 0:02:55.7]} 7... a6 {[%clk 0:02:28.1]} 8. h4 {[%clk
0:02:54.4]} 8... Nxe5 {[%clk 0:02:23.7]} 9. dxe5 {[%clk 0:02:52.6]} 9... Nd7
{[%clk 0:02:22.5]} 10. Qxd5 {[%clk 0:02:50.3]} 10... c6 {[%clk 0:02:16.3]} 11.
Qd4 {[%clk 0:02:39.4]} 11... c5 {[%clk 0:02:09.7]} 12. Qe4 {[%clk 0:02:34.1]}
12... e6 {[%clk 0:01:57.5]} 13. h5 {[%clk 0:02:24.8]} 13... Qc7 {[%clk
0:01:57.4]} 14. hxg6 {[%clk 0:02:24.6]} 14... hxg6 {[%clk 0:01:57.1]} 15. O-O-O
{[%clk 0:02:17.6]} 15... Nxe5 {[%clk 0:01:53]} 16. Bh6 {[%clk 0:02:09.7]} 16...
Bd7 {[%clk 0:01:44.8]} 17. Qh4 {[%clk 0:02:03.4]} 17... Bc6 {[%clk 0:01:16]} 18.
Bf4 {[%clk 0:01:10]} 18... f5 {[%clk 0:00:57.3]} 19. Qg3 {[%clk 0:01:01.7]}
19... Kf7 {[%clk 0:00:54.7]} 20. Rh7 {[%clk 0:00:59.7]} 20... Kg8 {[%clk
0:00:27.9]} 21. Rdh1 {[%clk 0:00:38.1]} 1-0

[Event "*** Titled Tuesday Blitz"]
[Site "Chess.com"]
[Date "2020.02.04"]
[Round "4"]
[White "IAgrest"]
[Black "GMMatamoros"]
[Result "0-1"]
[WhiteElo "1758"]
[BlackElo "2419"]
[TimeControl "180+2"]
[EndTime "9:50:03 PST"]
[Termination "GMMatamoros won by resignation"]

1. e4 {[%clk 0:03:01.9]} 1... c5 {[%clk 0:03:00]} 2. Nf3 {[%clk 0:03:01.2]} 2...
Nc6 {[%clk 0:03:01]} 3. d4 {[%clk 0:03:01.7]} 3... cxd4 {[%clk 0:03:02.1]} 4.
Nxd4 {[%clk 0:03:03.4]} 4... e5 {[%clk 0:03:03.6]} 5. Nb5 {[%clk 0:03:03.7]}
5... d6 {[%clk 0:03:04.8]} 6. N1c3 {[%clk 0:02:57]} 6... a6 {[%clk 0:03:05.4]}
7. Na3 {[%clk 0:02:58]} 7... Be7 {[%clk 0:03:06.9]} 8. Nc4 {[%clk 0:02:57.5]}
8... b5 {[%clk 0:03:05.8]} 9. Ne3 {[%clk 0:02:58.1]} 9... Nf6 {[%clk 0:03:07.3]}
10. f3 {[%clk 0:02:52.9]} 10... O-O {[%clk 0:03:03.1]} 11. Be2 {[%clk
0:02:53.3]} 11... Nd4 {[%clk 0:03:02.7]} 12. O-O {[%clk 0:02:52.2]} 12... Be6
{[%clk 0:03:00.6]} 13. Ncd5 {[%clk 0:02:44.7]} 13... Nxd5 {[%clk 0:02:54.1]} 14.
exd5 {[%clk 0:02:39.8]} 14... Nxe2+ {[%clk 0:02:52.3]} 15. Qxe2 {[%clk
0:02:39.7]} 15... Bd7 {[%clk 0:02:53.8]} 16. b3 {[%clk 0:02:10.4]} 16... f5
{[%clk 0:02:47.1]} 17. c4 {[%clk 0:02:02]} 17... Rc8 {[%clk 0:02:32.8]} 18. Bb2
{[%clk 0:01:53.2]} 18... Qb6 {[%clk 0:02:02.4]} 19. Kh1 {[%clk 0:01:50.9]} 19...
Bg5 {[%clk 0:02:02.6]} 20. Nd1 {[%clk 0:01:37.1]} 20... bxc4 {[%clk 0:01:56.7]}
21. bxc4 {[%clk 0:01:37.4]} 21... Qb4 {[%clk 0:01:49.9]} 22. Nf2 {[%clk
0:00:16.9]} 22... Qxc4 {[%clk 0:01:47.8]} 23. Qxc4 {[%clk 0:00:17.6]} 23... Rxc4
{[%clk 0:01:49.1]} 24. Ba3 {[%clk 0:00:19.3]} 24... Be7 {[%clk 0:01:35.7]} 25.
Rab1 {[%clk 0:00:20.5]} 25... Bb5 {[%clk 0:01:35.3]} 26. Rfd1 {[%clk 0:00:17.8]}
26... Rc2 {[%clk 0:01:26.8]} 27. Rb2 {[%clk 0:00:17.1]} 27... Rfc8 {[%clk
0:01:23.6]} 28. Kg1 {[%clk 0:00:06.8]} 28... Rxb2 {[%clk 0:01:22]} 29. Bxb2
{[%clk 0:00:08.7]} 29... Rc2 {[%clk 0:01:23]} 30. Rb1 {[%clk 0:00:08.6]} 30...
Bg5 {[%clk 0:01:17.9]} 0-1

[Event "*** Titled Tuesday Blitz"]
[Site "Chess.com"]
[Date "2020.02.04"]
[Round "4"]
[White "Colombiano07"]
[Black "Didici"]
[Result "1-0"]
[WhiteElo "2284"]
[BlackElo "2670"]
[TimeControl "180+2"]
[EndTime "9:50:15 PST"]
[Termination "Colombiano07 won by resignation"]

1. e4 {[%clk 0:03:01.9]} 1... b6 {[%clk 0:02:59.5]} 2. Nc3 {[%clk 0:03:00.9]}
2... Bb7 {[%clk 0:03:00.7]} 3. Nf3 {[%clk 0:03:02.1]} 3... e6 {[%clk 0:02:59.7]}
4. Bc4 {[%clk 0:02:59.2]} 4... Bb4 {[%clk 0:03:01]} 5. Qe2 {[%clk 0:02:56.4]}
5... Nf6 {[%clk 0:03:00.8]} 6. e5 {[%clk 0:02:54.2]} 6... Bxc3 {[%clk
0:03:01.3]} 7. bxc3 {[%clk 0:02:53.4]} 7... Nd5 {[%clk 0:03:02]} 8. O-O {[%clk
0:02:15.3]} 8... d6 {[%clk 0:02:18.5]} 9. Ba3 {[%clk 0:01:47.6]} 9... dxe5
{[%clk 0:01:40.4]} 10. Nxe5 {[%clk 0:01:37.8]} 10... Qg5 {[%clk 0:01:33.9]} 11.
f4 {[%clk 0:01:28.5]} 11... Qf5 {[%clk 0:01:12.7]} 12. Bb5+ {[%clk 0:00:53.1]}
12... c6 {[%clk 0:01:05]} 13. Bd3 {[%clk 0:00:53.7]} 13... Qf6 {[%clk 0:01:00]}
14. f5 {[%clk 0:00:54]} 14... Nd7 {[%clk 0:00:12.7]} 15. fxe6 {[%clk 0:00:44.6]}
15... Qxe6 {[%clk 0:00:12.8]} 16. Bf5 {[%clk 0:00:31.3]} 16... Qxe5 {[%clk
0:00:08.9]} 17. Bxd7+ {[%clk 0:00:31.4]} 17... Kxd7 {[%clk 0:00:10.8]} 18. Qxe5
{[%clk 0:00:32.1]} 18... f6 {[%clk 0:00:12.2]} 19. Qd6+ {[%clk 0:00:32.5]} 19...
Kc8 {[%clk 0:00:13.7]} 20. Qe6+ {[%clk 0:00:32.5]} 20... Kc7 {[%clk 0:00:14.5]}
21. Bd6+ {[%clk 0:00:32.4]} 21... Kd8 {[%clk 0:00:15.6]} 22. c4 {[%clk
0:00:31.3]} 22... Re8 {[%clk 0:00:15.7]} 23. Qf7 {[%clk 0:00:32.8]} 1-0

[Event "*** Titled Tuesday Blitz"]
[Site "Chess.com"]
[Date "2020.02.04"]
[Round "4"]
[White "GMSrinath"]
[Black "FelixJoseYnojosa"]
[Result "1-0"]
[WhiteElo "2975"]
[BlackElo "2663"]
[TimeControl "180+2"]
[EndTime "9:50:29 PST"]
[Termination "GMSrinath won by resignation"]

1. e4 {[%clk 0:03:01.9]} 1... c5 {[%clk 0:03:00.5]} 2. Nf3 {[%clk 0:03:01.9]}
2... Nc6 {[%clk 0:03:01.8]} 3. Bb5 {[%clk 0:03:01.5]} 3... e6 {[%clk 0:03:02.8]}
4. O-O {[%clk 0:03:00.1]} 4... Nge7 {[%clk 0:03:04]} 5. Re1 {[%clk 0:03:00.7]}
5... Nd4 {[%clk 0:03:04.6]} 6. Nxd4 {[%clk 0:02:58.3]} 6... cxd4 {[%clk
0:03:06.5]} 7. d3 {[%clk 0:02:59]} 7... a6 {[%clk 0:03:05.9]} 8. Ba4 {[%clk
0:02:59.9]} 8... Ng6 {[%clk 0:02:56.6]} 9. Bb3 {[%clk 0:02:40.6]} 9... Bd6
{[%clk 0:02:16.8]} 10. Nd2 {[%clk 0:02:32.9]} 10... b5 {[%clk 0:02:17.9]} 11. a4
{[%clk 0:02:33.4]} 11... Bb7 {[%clk 0:02:18.3]} 12. axb5 {[%clk 0:02:24.7]}
12... axb5 {[%clk 0:02:20.2]} 13. Rxa8 {[%clk 0:02:25.4]} 13... Bxa8 {[%clk
0:01:58.6]} 14. Qh5 {[%clk 0:02:25.7]} 14... Qb6 {[%clk 0:01:52.9]} 15. g3
{[%clk 0:02:25.2]} 15... Qc6 {[%clk 0:01:18.1]} 16. Bd5 {[%clk 0:02:10.8]} 16...
Qc5 {[%clk 0:00:54.1]} 17. b4 {[%clk 0:02:04.2]} 17... Qa7 {[%clk 0:00:50.3]}
18. Bxa8 {[%clk 0:02:02.3]} 18... Qxa8 {[%clk 0:00:52.2]} 19. Qxb5 {[%clk
0:02:03.5]} 19... O-O {[%clk 0:00:53.8]} 20. Qxd7 {[%clk 0:01:56.7]} 20... Rd8
{[%clk 0:00:44.8]} 21. Qb5 {[%clk 0:01:56]} 21... Ne5 {[%clk 0:00:37.5]} 22. f4
{[%clk 0:01:48.1]} 22... Nc6 {[%clk 0:00:22.5]} 23. Nf3 {[%clk 0:01:10.6]} 23...
Bxb4 {[%clk 0:00:23]} 24. Rf1 {[%clk 0:01:06.1]} 24... Bc3 {[%clk 0:00:14.5]}
25. Qh5 {[%clk 0:01:05.2]} 25... f6 {[%clk 0:00:08.1]} 26. e5 {[%clk 0:00:59.1]}
26... Nb4 {[%clk 0:00:07.2]} 27. exf6 {[%clk 0:00:54.5]} 27... gxf6 {[%clk
0:00:09.1]} 28. f5 {[%clk 0:00:55.3]} 28... e5 {[%clk 0:00:05.7]} 29. Bh6 {[%clk
0:00:56.6]} 29... Qb7 {[%clk 0:00:04.6]} 30. Nxe5 {[%clk 0:00:54.6]} 30... fxe5
{[%clk 0:00:05.3]} 31. Qg5+ {[%clk 0:00:55.6]} 31... Kf7 {[%clk 0:00:06.6]} 32.
Qg7+ {[%clk 0:00:55.8]} 32... Ke8 {[%clk 0:00:07.5]} 33. Qxb7 {[%clk 0:00:57.7]}
1-0

[Event "*** Titled Tuesday Blitz"]
[Site "Chess.com"]
[Date "2020.02.04"]
[Round "4"]
[White "EmmaChess"]
[Black "DDTerziev04"]
[Result "1-0"]
[WhiteElo "2460"]
[BlackElo "2211"]
[TimeControl "180+2"]
[EndTime "9:50:34 PST"]
[Termination "EmmaChess won on time"]

1. Nf3 {[%clk 0:02:46.1]} 1... Nf6 {[%clk 0:02:58.3]} 2. d3 {[%clk 0:02:48]}
2... d5 {[%clk 0:02:55.9]} 3. Nbd2 {[%clk 0:02:49.9]} 3... Nc6 {[%clk
0:02:55.9]} 4. e4 {[%clk 0:02:50.8]} 4... dxe4 {[%clk 0:02:53.6]} 5. dxe4 {[%clk
0:02:52.7]} 5... e5 {[%clk 0:02:54]} 6. Bb5 {[%clk 0:02:53.8]} 6... Bc5 {[%clk
0:02:44.6]} 7. O-O {[%clk 0:02:54.4]} 7... Bg4 {[%clk 0:02:41.5]} 8. h3 {[%clk
0:02:54.8]} 8... Bxf3 {[%clk 0:02:42.2]} 9. Bxc6+ {[%clk 0:02:54.2]} 9... bxc6
{[%clk 0:02:42.3]} 10. Qxf3 {[%clk 0:02:55.7]} 10... O-O {[%clk 0:02:41.6]} 11.
Nb3 {[%clk 0:02:57.1]} 11... Bb6 {[%clk 0:02:37.2]} 12. a4 {[%clk 0:02:58.2]}
12... a5 {[%clk 0:02:37.3]} 13. Bg5 {[%clk 0:02:58.4]} 13... h6 {[%clk
0:02:36.4]} 14. Bxf6 {[%clk 0:02:59.2]} 14... Qxf6 {[%clk 0:02:38.3]} 15. Qxf6
{[%clk 0:03:00.2]} 15... gxf6 {[%clk 0:02:40.1]} 16. Rad1 {[%clk 0:02:59.1]}
16... Rad8 {[%clk 0:02:39.6]} 17. Rfe1 {[%clk 0:02:55.3]} 17... Rd6 {[%clk
0:02:36.5]} 18. Rd2 {[%clk 0:02:40.8]} 18... Rfd8 {[%clk 0:02:30.9]} 19. Red1
{[%clk 0:02:41.2]} 19... Kf8 {[%clk 0:02:26]} 20. Kf1 {[%clk 0:02:42.1]} 20...
Ke7 {[%clk 0:02:26.7]} 21. Ke2 {[%clk 0:02:43.5]} 21... Ke6 {[%clk 0:02:25.6]}
22. Rd3 {[%clk 0:02:35.2]} 22... f5 {[%clk 0:02:13.4]} 23. Nd2 {[%clk
0:02:30.3]} 23... fxe4 {[%clk 0:02:01.3]} 24. Nxe4 {[%clk 0:02:29.3]} 24... Rxd3
{[%clk 0:02:00.9]} 25. cxd3 {[%clk 0:02:31]} 25... f5 {[%clk 0:02:01.2]} 26. Nd2
{[%clk 0:02:29]} 26... Rd4 {[%clk 0:01:56.7]} 27. b3 {[%clk 0:02:26.3]} 27...
Bc5 {[%clk 0:01:45.7]} 28. Rc1 {[%clk 0:02:24.5]} 28... Kd5 {[%clk 0:01:29]} 29.
Nc4 {[%clk 0:02:16.3]} 29... Rf4 {[%clk 0:00:46.8]} 30. f3 {[%clk 0:02:15.1]}
30... Bb6 {[%clk 0:00:38.4]} 31. g3 {[%clk 0:02:09.1]} 31... Rd4 {[%clk
0:00:38.7]} 32. Ne3+ {[%clk 0:02:08.1]} 32... Ke6 {[%clk 0:00:33.1]} 33. Rxc6+
{[%clk 0:02:05.4]} 33... Rd6 {[%clk 0:00:29.3]} 34. Rc4 {[%clk 0:01:47.4]} 34...
Bxe3 {[%clk 0:00:11.2]} 35. Kxe3 {[%clk 0:01:49.3]} 35... c6 {[%clk 0:00:09.7]}
36. Rc5 {[%clk 0:01:37.8]} 36... Rd4 {[%clk 0:00:10.3]} 37. Rxc6+ {[%clk
0:01:38.8]} 37... Kd5 {[%clk 0:00:10.2]} 38. Ra6 {[%clk 0:01:39.9]} 38... f4+
{[%clk 0:00:05.8]} 39. gxf4 {[%clk 0:01:41.8]} 39... exf4+ {[%clk 0:00:07.7]}
40. Kd2 {[%clk 0:01:42.3]} 40... Rb4 {[%clk 0:00:03]} 41. Kc3 {[%clk 0:01:44.2]}
1-0

[Event "*** Titled Tuesday Blitz"]
[Site "Chess.com"]
[Date "2020.02.04"]
[Round "4"]
[White "RojonR"]
[Black "Saloni1299"]
[Result "1-0"]
[WhiteElo "2428"]
[BlackElo "2110"]
[TimeControl "180+2"]
[EndTime "9:50:42 PST"]
[Termination "RojonR won by resignation"]

1. e4 {[%clk 0:03:01.9]} 1... e6 {[%clk 0:03:00.3]} 2. d4 {[%clk 0:03:01]} 2...
d5 {[%clk 0:03:00.9]} 3. e5 {[%clk 0:03:02]} 3... c5 {[%clk 0:02:59.5]} 4. c3
{[%clk 0:03:03.1]} 4... Nc6 {[%clk 0:02:56.2]} 5. Nf3 {[%clk 0:03:03.7]} 5...
Qb6 {[%clk 0:02:52.5]} 6. Na3 {[%clk 0:03:04.4]} 6... cxd4 {[%clk 0:02:39.3]} 7.
cxd4 {[%clk 0:03:06.3]} 7... Bb4+ {[%clk 0:02:39.2]} 8. Bd2 {[%clk 0:03:06.9]}
8... Nxd4 {[%clk 0:02:40]} 9. Nxd4 {[%clk 0:03:06.5]} 9... Qxd4 {[%clk
0:02:40.9]} 10. Qa4+ {[%clk 0:03:07.9]} 10... Bd7 {[%clk 0:02:17.2]} 11. Qxb4
{[%clk 0:03:09.8]} 11... Qxe5+ {[%clk 0:02:17.7]} 12. Be2 {[%clk 0:03:11]} 12...
a5 {[%clk 0:02:11.3]} 13. Qc3 {[%clk 0:02:51.5]} 13... d4 {[%clk 0:02:03.5]} 14.
Qg3 {[%clk 0:02:51.7]} 14... Qxg3 {[%clk 0:01:50.3]} 15. hxg3 {[%clk 0:02:53.6]}
15... Ne7 {[%clk 0:01:41.9]} 16. Nb5 {[%clk 0:02:49.4]} 16... Bxb5 {[%clk
0:01:21.9]} 17. Bxb5+ {[%clk 0:02:50.6]} 17... Nc6 {[%clk 0:01:22.9]} 18. Rc1
{[%clk 0:02:44.1]} 18... Kd7 {[%clk 0:01:22.4]} 19. Ke2 {[%clk 0:02:36.1]} 19...
Kd6 {[%clk 0:01:22.7]} 20. Rc4 {[%clk 0:02:29.4]} 20... e5 {[%clk 0:01:23]} 21.
Bxc6 {[%clk 0:02:06.1]} 21... bxc6 {[%clk 0:01:16.1]} 22. Rhc1 {[%clk
0:02:07.3]} 22... Rhc8 {[%clk 0:01:12.6]} 23. f4 {[%clk 0:02:04.3]} 23... f6
{[%clk 0:01:12.8]} 24. Ra4 {[%clk 0:01:55.3]} 24... Rcb8 {[%clk 0:00:55.4]} 25.
b3 {[%clk 0:01:48.4]} 25... Rb5 {[%clk 0:00:55.9]} 26. Rac4 {[%clk 0:01:46]}
26... Ra6 {[%clk 0:00:39.4]} 27. g4 {[%clk 0:01:30.7]} 27... h6 {[%clk
0:00:20.1]} 28. fxe5+ {[%clk 0:01:07.8]} 28... fxe5 {[%clk 0:00:22]} 29. g5
{[%clk 0:01:08.8]} 29... hxg5 {[%clk 0:00:21.2]} 30. Bxg5 {[%clk 0:01:08.8]}
30... Rb7 {[%clk 0:00:21.1]} 31. Kd3 {[%clk 0:01:05.3]} 31... Rb5 {[%clk
0:00:16.4]} 32. Ke4 {[%clk 0:01:05]} 32... Ra7 {[%clk 0:00:15.4]} 33. Rxc6+
{[%clk 0:01:04.8]} 33... Kd7 {[%clk 0:00:14.8]} 34. Rg6 {[%clk 0:01:05.3]} 1-0

[Event "*** Titled Tuesday Blitz"]
[Site "Chess.com"]
[Date "2020.02.04"]
[Round "4"]
[White "Sjakkerntobi"]
[Black "karinachess1"]
[Result "0-1"]
[WhiteElo "2281"]
[BlackElo "2511"]
[TimeControl "180+2"]
[EndTime "9:50:50 PST"]
[Termination "karinachess1 won by resignation"]

1. e4 {[%clk 0:03:01.9]} 1... c5 {[%clk 0:03:00.5]} 2. Nf3 {[%clk 0:03:02.2]}
2... e6 {[%clk 0:03:01.3]} 3. d4 {[%clk 0:03:03.5]} 3... cxd4 {[%clk 0:03:03.2]}
4. Nxd4 {[%clk 0:03:05.4]} 4... a6 {[%clk 0:03:04.7]} 5. c4 {[%clk 0:03:06.2]}
5... Nf6 {[%clk 0:03:02.9]} 6. Nc3 {[%clk 0:03:06.3]} 6... Bb4 {[%clk
0:02:59.5]} 7. Qd3 {[%clk 0:02:48.8]} 7... Qc7 {[%clk 0:02:55.6]} 8. a3 {[%clk
0:02:47.3]} 8... Be7 {[%clk 0:02:49.3]} 9. Be2 {[%clk 0:02:29.5]} 9... d6 {[%clk
0:02:49.3]} 10. O-O {[%clk 0:02:24.2]} 10... Nbd7 {[%clk 0:02:49.6]} 11. f4
{[%clk 0:02:23.3]} 11... b6 {[%clk 0:02:47.7]} 12. b4 {[%clk 0:02:24.1]} 12...
Bb7 {[%clk 0:02:47.9]} 13. Bb2 {[%clk 0:02:23.6]} 13... O-O {[%clk 0:02:43.3]}
14. g4 {[%clk 0:02:17.2]} 14... d5 {[%clk 0:02:26.9]} 15. cxd5 {[%clk
0:02:15.3]} 15... exd5 {[%clk 0:02:27.4]} 16. e5 {[%clk 0:02:17]} 16... Ne4
{[%clk 0:02:28.2]} 17. Rac1 {[%clk 0:02:14.5]} 17... Qd8 {[%clk 0:02:21.5]} 18.
Qh3 {[%clk 0:02:05]} 18... Rc8 {[%clk 0:02:13.1]} 19. Bd3 {[%clk 0:02:04.4]}
19... a5 {[%clk 0:02:06.5]} 20. Nf5 {[%clk 0:01:42.8]} 20... axb4 {[%clk
0:01:57]} 21. Nxd5 {[%clk 0:01:43.6]} 21... Bc5+ {[%clk 0:01:37.1]} 22. Rxc5
{[%clk 0:01:34.4]} 22... Ndxc5 {[%clk 0:01:27.3]} 23. Nde7+ {[%clk 0:00:54.4]}
23... Kh8 {[%clk 0:01:27.8]} 24. e6 {[%clk 0:00:55.7]} 24... Nc3 {[%clk
0:01:07.8]} 25. Nd6 {[%clk 0:00:35.1]} 25... Nxd3 {[%clk 0:00:58.7]} 26. Nxf7+
{[%clk 0:00:27.5]} 26... Rxf7 {[%clk 0:00:57.6]} 27. Ng6+ {[%clk 0:00:28.7]}
27... Kg8 {[%clk 0:00:57.3]} 28. exf7+ {[%clk 0:00:30.6]} 28... Kxf7 {[%clk
0:00:56]} 29. Ne5+ {[%clk 0:00:22.8]} 29... Nxe5 {[%clk 0:00:55.1]} 30. fxe5+
{[%clk 0:00:24.7]} 30... Kg8 {[%clk 0:00:56.2]} 31. axb4 {[%clk 0:00:25.5]}
31... Qd4+ {[%clk 0:00:56.4]} 32. Rf2 {[%clk 0:00:21.8]} 32... Rf8 {[%clk
0:00:52.1]} 33. Qg3 {[%clk 0:00:10.6]} 33... Qd1+ {[%clk 0:00:50.8]} 0-1

[Event "*** Titled Tuesday Blitz"]
[Site "Chess.com"]
[Date "2020.02.04"]
[Round "4"]
[White "Andro2"]
[Black "Ariadna_Atreides"]
[Result "1-0"]
[WhiteElo "2422"]
[BlackElo "2064"]
[TimeControl "180+2"]
[EndTime "9:51:08 PST"]
[Termination "Andro2 won on time"]

1. e4 {[%clk 0:03:01.9]} 1... c5 {[%clk 0:02:53.6]} 2. Nf3 {[%clk 0:03:01.9]}
2... d6 {[%clk 0:02:53.8]} 3. d4 {[%clk 0:03:02.6]} 3... cxd4 {[%clk 0:02:54.1]}
4. Nxd4 {[%clk 0:03:04.2]} 4... Nf6 {[%clk 0:02:55.5]} 5. Nc3 {[%clk 0:03:04.9]}
5... Nc6 {[%clk 0:02:55.8]} 6. Bg5 {[%clk 0:03:04.5]} 6... e6 {[%clk 0:02:54.9]}
7. Qd2 {[%clk 0:03:04.4]} 7... a6 {[%clk 0:02:55.8]} 8. O-O-O {[%clk 0:03:02.7]}
8... Bd7 {[%clk 0:02:55.3]} 9. f4 {[%clk 0:02:59.6]} 9... Be7 {[%clk 0:02:48.2]}
10. Kb1 {[%clk 0:02:47.9]} 10... Qc7 {[%clk 0:02:29.3]} 11. Be2 {[%clk
0:02:24.2]} 11... b5 {[%clk 0:02:21.4]} 12. Bxb5 {[%clk 0:02:09.7]} 12... axb5
{[%clk 0:02:20.4]} 13. Ndxb5 {[%clk 0:02:10.6]} 13... Qb8 {[%clk 0:02:20.8]} 14.
Nxd6+ {[%clk 0:02:10.4]} 14... Bxd6 {[%clk 0:02:19.8]} 15. Qxd6 {[%clk
0:02:11.9]} 15... Qxd6 {[%clk 0:02:20.5]} 16. Rxd6 {[%clk 0:02:12.6]} 16... h6
{[%clk 0:02:10.7]} 17. Bh4 {[%clk 0:02:01.6]} 17... Rg8 {[%clk 0:01:30]} 18.
Rhd1 {[%clk 0:01:53.6]} 18... g5 {[%clk 0:01:29.2]} 19. fxg5 {[%clk 0:01:54]}
19... hxg5 {[%clk 0:01:29.8]} 20. Bg3 {[%clk 0:01:53.7]} 20... O-O-O {[%clk
0:01:00.2]} 21. Rf1 {[%clk 0:01:36.7]} 21... Nh5 {[%clk 0:00:37.2]} 22. Rxf7
{[%clk 0:01:30.5]} 22... Nxg3 {[%clk 0:00:37.3]} 23. hxg3 {[%clk 0:01:31.5]}
23... Ne5 {[%clk 0:00:35]} 24. Re7 {[%clk 0:00:59.8]} 24... Rgf8 {[%clk
0:00:22.4]} 25. b3 {[%clk 0:00:56.9]} 25... Rf1+ {[%clk 0:00:21.9]} 26. Kb2
{[%clk 0:00:57.4]} 26... Rf2 {[%clk 0:00:20.8]} 27. a4 {[%clk 0:00:52.5]} 27...
Rxg2 {[%clk 0:00:18.5]} 28. a5 {[%clk 0:00:52.2]} 28... Kb7 {[%clk 0:00:06.7]}
29. a6+ {[%clk 0:00:47.5]} 29... Ka8 {[%clk 0:00:05.5]} 30. Rexe6 {[%clk
0:00:31.7]} 30... Rxg3 {[%clk 0:00:02.5]} 31. Rxe5 {[%clk 0:00:31.2]} 31... Rg2
{[%clk 0:00:02.3]} 32. Red5 {[%clk 0:00:31.6]} 1-0